[Event "Titled Tuesday Blitz February 07 Early 2023"]
[White "Eynullayev, Atilla"]
[Black "Da Silva Junior, Sediney Mari"]
[WhiteFideId "13413570"]
[BlackFideId "2132079"]
[WhiteElo "2281"]
[BlackElo "2010"]
[Result "1-0"]
[Round "05"]
[TimeControl "180+2"]
[Date "2023.02.07"]
[WhiteClock "0:00:02"]
[BlackClock "0:00:04"]

1. e4 {[%clk 0:03:00]}  e6 {[%clk 0:02:56]} 2. d4 {[%clk 0:03:00]}  d5 {[%clk 0:02:56]} 3. e5 {[%clk 0:02:59]}  c5 {[%clk 0:02:56]} 4. c3 {[%clk 0:02:59]}  Nc6 {[%clk 0:02:57]} 5. Nf3 {[%clk 0:02:59]}  Qb6 {[%clk 0:02:57]} 6. a3 {[%clk 0:02:59]}  cxd4 {[%clk 0:02:58]} 7. cxd4 {[%clk 0:02:55]}  Nh6 {[%clk 0:02:58]} 8. Bd3 {[%clk 0:02:47]}  Be7 {[%clk 0:02:57]} 9. b4 {[%clk 0:02:41]}  Nf5 {[%clk 0:02:57]} 10. Bxf5 {[%clk 0:02:41]}  exf5 {[%clk 0:02:57]} 11. Nc3 {[%clk 0:02:41]}  Be6 {[%clk 0:02:57]} 12. O-O {[%clk 0:02:42]}  O-O {[%clk 0:02:57]} 13. Na4 {[%clk 0:02:41]}  Qd8 {[%clk 0:02:56]} 14. Bd2 {[%clk 0:02:22]}  f6 {[%clk 0:01:52]} 15. Re1 {[%clk 0:01:57]}  Qd7 {[%clk 0:00:48]} 16. b5 {[%clk 0:01:38]}  Nd8 {[%clk 0:00:44]} 17. exf6 {[%clk 0:01:38]}  Bxf6 {[%clk 0:00:43]} 18. Nc5 {[%clk 0:01:36]}  Qf7 {[%clk 0:00:40]} 19. Ng5 {[%clk 0:01:06]}  Bxg5 {[%clk 0:00:37]} 20. Bxg5 {[%clk 0:01:07]}  b6 {[%clk 0:00:35]} 21. Nd3 {[%clk 0:01:07]}  Qd7 {[%clk 0:00:33]} 22. Nf4 {[%clk 0:00:58]}  Re8 {[%clk 0:00:29]} 23. Qh5 {[%clk 0:00:41]}  Bf7 {[%clk 0:00:27]} 24. Qh4 {[%clk 0:00:34]}  Qxb5 {[%clk 0:00:24]} 25. Re5 {[%clk 0:00:16]}  Nc6 {[%clk 0:00:22]} 26. Re3 {[%clk 0:00:06]}  Qb2 {[%clk 0:00:20]} 27. Rae1 {[%clk 0:00:05]}  Qxd4 {[%clk 0:00:17]} 28. h3 {[%clk 0:00:02]}  Rxe3 {[%clk 0:00:14]} 29. Rxe3 {[%clk 0:00:03]}  Qd1+ {[%clk 0:00:10]} 30. Kh2 {[%clk 0:00:03]}  d4 {[%clk 0:00:11]} 31. Rg3 {[%clk 0:00:03]}  Ne5 {[%clk 0:00:09]} 32. Bf6 {[%clk 0:00:03]}  Ng6 {[%clk 0:00:08]} 33. Nxg6 {[%clk 0:00:03]}  hxg6 {[%clk 0:00:06]} 34. Be5 {[%clk 0:00:03]}  Qd2 {[%clk 0:00:04]} 35. Qe7 {[%clk 0:00:02]} 1-0


[Site "https://www.chess.com"]

[Event "Titled Tuesday Blitz February 07 Early 2023"]
[White "Lehtosaari, Mauri"]
[Black "Fathy, Elameir"]
[WhiteFideId "501999"]
[BlackFideId "10600396"]
[WhiteElo "2176"]
[BlackElo "2300"]
[Result "1-0"]
[Round "05"]
[TimeControl "180+2"]
[Date "2023.02.07"]
[WhiteClock "0:00:39"]
[BlackClock "0:00:03"]

1. d4 {[%clk 0:03:00]}  d5 {[%clk 0:02:59]} 2. Nf3 {[%clk 0:03:01]}  Nf6 {[%clk 0:02:58]} 3. Bg5 {[%clk 0:03:02]}  Bf5 {[%clk 0:02:54]} 4. c4 {[%clk 0:02:52]}  c6 {[%clk 0:02:53]} 5. Nc3 {[%clk 0:02:53]}  e6 {[%clk 0:02:53]} 6. Qb3 {[%clk 0:02:52]}  Qb6 {[%clk 0:02:52]} 7. c5 {[%clk 0:02:52]}  Qxb3 {[%clk 0:02:53]} 8. axb3 {[%clk 0:02:53]}  Be7 {[%clk 0:02:52]} 9. b4 {[%clk 0:02:53]}  O-O {[%clk 0:02:49]} 10. e3 {[%clk 0:02:51]}  a6 {[%clk 0:02:46]} 11. Be2 {[%clk 0:02:45]}  Nbd7 {[%clk 0:02:43]} 12. O-O {[%clk 0:02:44]}  h6 {[%clk 0:02:44]} 13. Bh4 {[%clk 0:02:43]}  g5 {[%clk 0:02:43]} 14. Bg3 {[%clk 0:02:43]}  Nh5 {[%clk 0:02:42]} 15. Bc7 {[%clk 0:02:33]}  Rac8 {[%clk 0:02:34]} 16. Nd2 {[%clk 0:02:29]}  Rxc7 {[%clk 0:02:17]} 17. Bxh5 {[%clk 0:02:29]}  e5 {[%clk 0:02:08]} 18. dxe5 {[%clk 0:02:21]}  Nxe5 {[%clk 0:02:08]} 19. Be2 {[%clk 0:02:18]}  Bg6 {[%clk 0:01:51]} 20. Nf3 {[%clk 0:02:14]}  Nxf3+ {[%clk 0:01:48]} 21. Bxf3 {[%clk 0:02:13]}  Rd8 {[%clk 0:01:42]} 22. Rfd1 {[%clk 0:02:13]}  Rcd7 {[%clk 0:01:37]} 23. Ne2 {[%clk 0:02:02]}  h5 {[%clk 0:01:15]} 24. h3 {[%clk 0:01:58]}  h4 {[%clk 0:00:48]} 25. Nd4 {[%clk 0:01:55]}  Bf6 {[%clk 0:00:48]} 26. Bg4 {[%clk 0:01:47]}  Re7 {[%clk 0:00:45]} 27. Rd2 {[%clk 0:01:35]}  Ra8 {[%clk 0:00:25]} 28. Kf1 {[%clk 0:01:13]}  Kg7 {[%clk 0:00:23]} 29. Rad1 {[%clk 0:01:03]}  Ree8 {[%clk 0:00:15]} 30. Ra1 {[%clk 0:00:59]}  Bxd4 {[%clk 0:00:10]} 31. Rxd4 {[%clk 0:00:57]}  Re4 {[%clk 0:00:11]} 32. Rxe4 {[%clk 0:00:55]}  Bxe4 {[%clk 0:00:11]} 33. Be2 {[%clk 0:00:50]}  Bf5 {[%clk 0:00:10]} 34. Ke1 {[%clk 0:00:50]}  Rd8 {[%clk 0:00:09]} 35. Rd1 {[%clk 0:00:44]}  Ra8 {[%clk 0:00:10]} 36. Kd2 {[%clk 0:00:43]}  Be4 {[%clk 0:00:07]} 37. f3 {[%clk 0:00:43]}  Bf5 {[%clk 0:00:07]} 38. Kc3 {[%clk 0:00:41]}  Kf6 {[%clk 0:00:08]} 39. Kd4 {[%clk 0:00:41]}  Bd7 {[%clk 0:00:06]} 40. Bd3 {[%clk 0:00:40]}  a5 {[%clk 0:00:06]} 41. Ra1 {[%clk 0:00:40]}  a4 {[%clk 0:00:03]} 42. Bc2 {[%clk 0:00:39]} 1-0


[Site "https://www.chess.com"]

[Event "Titled Tuesday Blitz February 07 Early 2023"]
[White "Vifleemskaia, Svetlana"]
[Black "Danielyan, Vahe"]
[WhiteFideId "4129490"]
[BlackFideId "13304828"]
[WhiteElo "1971"]
[BlackElo "2346"]
[Result "0-1"]
[Round "05"]
[TimeControl "180+2"]
[Date "2023.02.07"]
[WhiteClock "0:00:01"]
[BlackClock "0:00:37"]

1. d4 {[%clk 0:02:55]}  Nf6 {[%clk 0:02:59]} 2. c4 {[%clk 0:02:50]}  g6 {[%clk 0:02:58]} 3. Nc3 {[%clk 0:02:50]}  Bg7 {[%clk 0:02:55]} 4. e4 {[%clk 0:02:50]}  d6 {[%clk 0:02:54]} 5. Nge2 {[%clk 0:02:51]}  O-O {[%clk 0:02:53]} 6. Ng3 {[%clk 0:02:51]}  c6 {[%clk 0:02:42]} 7. Be2 {[%clk 0:02:50]}  a6 {[%clk 0:02:38]} 8. a4 {[%clk 0:02:48]}  a5 {[%clk 0:02:28]} 9. O-O {[%clk 0:02:46]}  Na6 {[%clk 0:02:27]} 10. e5 {[%clk 0:02:33]}  dxe5 {[%clk 0:02:22]} 11. dxe5 {[%clk 0:02:33]}  Qxd1 {[%clk 0:02:23]} 12. Rxd1 {[%clk 0:02:31]}  Nd7 {[%clk 0:02:22]} 13. f4 {[%clk 0:02:29]}  Nb4 {[%clk 0:02:17]} 14. Bg4 {[%clk 0:02:13]}  Nc5 {[%clk 0:02:02]} 15. Bxc8 {[%clk 0:02:10]}  Raxc8 {[%clk 0:02:01]} 16. Na2 {[%clk 0:01:52]}  Nb3 {[%clk 0:01:39]} 17. Nxb4 {[%clk 0:01:35]}  Nxa1 {[%clk 0:01:39]} 18. Be3 {[%clk 0:01:23]}  Nb3 {[%clk 0:01:29]} 19. Nd3 {[%clk 0:01:18]}  Rfd8 {[%clk 0:01:27]} 20. Kf2 {[%clk 0:01:18]}  Rd7 {[%clk 0:01:13]} 21. Ke2 {[%clk 0:00:48]}  Nd4+ {[%clk 0:01:12]} 22. Bxd4 {[%clk 0:00:47]}  Rxd4 {[%clk 0:01:13]} 23. b3 {[%clk 0:00:46]}  Rcd8 {[%clk 0:01:12]} 24. Ke3 {[%clk 0:00:46]}  g5 {[%clk 0:01:10]} 25. fxg5 {[%clk 0:00:25]}  Bxe5 {[%clk 0:01:09]} 26. Nf5 {[%clk 0:00:19]}  Bf4+ {[%clk 0:01:07]} 27. Ke2 {[%clk 0:00:19]}  R4d7 {[%clk 0:00:59]} 28. g3 {[%clk 0:00:16]}  Bxg5 {[%clk 0:00:58]} 29. h4 {[%clk 0:00:13]}  Bf6 {[%clk 0:00:57]} 30. Nf2 {[%clk 0:00:08]}  Rxd1 {[%clk 0:00:55]} 31. Nxd1 {[%clk 0:00:09]}  e6 {[%clk 0:00:56]} 32. Nfe3 {[%clk 0:00:08]}  h5 {[%clk 0:00:53]} 33. Nf2 {[%clk 0:00:06]}  Kg7 {[%clk 0:00:49]} 34. Ne4 {[%clk 0:00:06]}  Rd4 {[%clk 0:00:48]} 35. Nc5 {[%clk 0:00:05]}  b6 {[%clk 0:00:45]} 36. Nd3 {[%clk 0:00:04]}  Rd8 {[%clk 0:00:36]} 37. Nf4 {[%clk 0:00:03]}  Rh8 {[%clk 0:00:37]} 38. Kf3 {[%clk 0:00:02]}  Be5 {[%clk 0:00:37]} 39. Nd3 {[%clk 0:00:01]}  Bd6 {[%clk 0:00:37]} 0-1


[Site "https://www.chess.com"]

[Event "Titled Tuesday Blitz February 07 Early 2023"]
[White "Herman, Daniel"]
[Black "JonSnowNW1"]
[WhiteFideId "30935008"]
[WhiteElo "1956"]
[BlackElo "2329"]
[Result "0-1"]
[Round "05"]
[TimeControl "180+2"]
[Date "2023.02.07"]
[WhiteClock "0:00:17"]
[BlackClock "0:00:16"]

1. e4 {[%clk 0:03:00]}  c5 {[%clk 0:02:55]} 2. Nf3 {[%clk 0:03:01]}  d6 {[%clk 0:02:55]} 3. d4 {[%clk 0:03:01]}  cxd4 {[%clk 0:02:55]} 4. Nxd4 {[%clk 0:03:02]}  Nf6 {[%clk 0:02:55]} 5. Nc3 {[%clk 0:03:02]}  a6 {[%clk 0:02:55]} 6. h3 {[%clk 0:03:02]}  e5 {[%clk 0:02:52]} 7. Nde2 {[%clk 0:03:03]}  h5 {[%clk 0:02:49]} 8. Bg5 {[%clk 0:03:02]}  Be6 {[%clk 0:02:37]} 9. Bxf6 {[%clk 0:03:02]}  Qxf6 {[%clk 0:02:36]} 10. Nd5 {[%clk 0:03:02]}  Qd8 {[%clk 0:02:36]} 11. Nec3 {[%clk 0:03:02]}  Nd7 {[%clk 0:02:35]} 12. Bc4 {[%clk 0:03:02]}  Rc8 {[%clk 0:02:35]} 13. Bb3 {[%clk 0:03:01]}  Nc5 {[%clk 0:02:35]} 14. Ne3 {[%clk 0:02:52]}  Nxb3 {[%clk 0:02:21]} 15. axb3 {[%clk 0:02:50]}  g6 {[%clk 0:02:22]} 16. Ncd5 {[%clk 0:02:45]}  Bh6 {[%clk 0:02:14]} 17. O-O {[%clk 0:02:37]}  O-O {[%clk 0:02:14]} 18. c4 {[%clk 0:02:34]}  Qg5 {[%clk 0:02:00]} 19. Kh2 {[%clk 0:02:15]}  f5 {[%clk 0:01:58]} 20. exf5 {[%clk 0:02:13]}  gxf5 {[%clk 0:01:58]} 21. f4 {[%clk 0:02:12]}  exf4 {[%clk 0:01:39]} 22. Nxf4 {[%clk 0:02:11]}  Bf7 {[%clk 0:01:38]} 23. Ned5 {[%clk 0:02:05]}  h4 {[%clk 0:01:34]} 24. Qf3 {[%clk 0:01:57]}  Rce8 {[%clk 0:01:31]} 25. Rae1 {[%clk 0:01:56]}  Bg7 {[%clk 0:01:26]} 26. Nd3 {[%clk 0:01:37]}  Bh5 {[%clk 0:01:17]} 27. Qf4 {[%clk 0:01:19]}  Qg3+ {[%clk 0:01:08]} 28. Qxg3 {[%clk 0:01:09]}  hxg3+ {[%clk 0:01:07]} 29. Kxg3 {[%clk 0:01:00]}  Be2 {[%clk 0:01:08]} 30. N3f4 {[%clk 0:00:55]}  Bxf1 {[%clk 0:01:06]} 31. Rxf1 {[%clk 0:00:56]}  Be5 {[%clk 0:01:05]} 32. Rf2 {[%clk 0:00:49]}  Rf7 {[%clk 0:00:56]} 33. Kf3 {[%clk 0:00:48]}  Bxf4 {[%clk 0:00:56]} 34. Nxf4 {[%clk 0:00:41]}  Re5 {[%clk 0:00:49]} 35. Nd5 {[%clk 0:00:41]}  b5 {[%clk 0:00:48]} 36. Rd2 {[%clk 0:00:39]}  bxc4 {[%clk 0:00:43]} 37. bxc4 {[%clk 0:00:39]}  Rb7 {[%clk 0:00:43]} 38. b4 {[%clk 0:00:23]}  Kf7 {[%clk 0:00:34]} 39. g3 {[%clk 0:00:22]}  Re4 {[%clk 0:00:31]} 40. Rc2 {[%clk 0:00:20]}  Rd4 {[%clk 0:00:26]} 41. h4 {[%clk 0:00:19]}  Rd3+ {[%clk 0:00:26]} 42. Kg2 {[%clk 0:00:18]}  Rb8 {[%clk 0:00:22]} 43. Kh3 {[%clk 0:00:18]}  Rg8 {[%clk 0:00:22]} 44. Rg2 {[%clk 0:00:18]}  Rg4 {[%clk 0:00:16]} 45. Nf4 {[%clk 0:00:17]}  Rxf4 {[%clk 0:00:16]} 0-1


[Site "https://www.chess.com"]

[Event "Titled Tuesday Blitz February 07 Early 2023"]
[White "Baches Garcia, Guillermo"]
[Black "Prudnykova, Olga"]
[WhiteFideId "2209764"]
[BlackFideId "14121093"]
[WhiteElo "2327"]
[BlackElo "2268"]
[Result "1-0"]
[Round "05"]
[TimeControl "180+2"]
[Date "2023.02.07"]
[WhiteClock "0:00:11"]
[BlackClock "0:00:02"]

1. e4 {[%clk 0:03:00]}  c5 {[%clk 0:02:59]} 2. Nc3 {[%clk 0:03:01]}  a6 {[%clk 0:02:58]} 3. Nf3 {[%clk 0:03:01]}  b5 {[%clk 0:02:50]} 4. d4 {[%clk 0:03:00]}  e6 {[%clk 0:02:49]} 5. Be3 {[%clk 0:02:55]}  Qc7 {[%clk 0:02:48]} 6. Qd2 {[%clk 0:02:44]}  Bb7 {[%clk 0:02:47]} 7. O-O-O {[%clk 0:02:40]}  b4 {[%clk 0:02:29]} 8. Na4 {[%clk 0:02:40]}  cxd4 {[%clk 0:02:28]} 9. Qxd4 {[%clk 0:02:32]}  Nc6 {[%clk 0:02:28]} 10. Qb6 {[%clk 0:02:31]}  Qxb6 {[%clk 0:02:27]} 11. Nxb6 {[%clk 0:02:31]}  Rd8 {[%clk 0:02:27]} 12. e5 {[%clk 0:02:17]}  Nh6 {[%clk 0:02:04]} 13. Nc4 {[%clk 0:02:11]}  Ng4 {[%clk 0:02:03]} 14. Bb6 {[%clk 0:02:10]}  Rc8 {[%clk 0:02:01]} 15. Rd2 {[%clk 0:01:57]}  f6 {[%clk 0:01:48]} 16. exf6 {[%clk 0:01:51]}  gxf6 {[%clk 0:01:48]} 17. Kb1 {[%clk 0:01:51]}  d5 {[%clk 0:01:46]} 18. Ne3 {[%clk 0:01:46]}  Nxe3 {[%clk 0:01:31]} 19. Bxe3 {[%clk 0:01:47]}  Bd6 {[%clk 0:01:15]} 20. Bd3 {[%clk 0:01:42]}  Ne5 {[%clk 0:01:14]} 21. Nxe5 {[%clk 0:01:36]}  Bxe5 {[%clk 0:01:15]} 22. Re1 {[%clk 0:01:30]}  Kf7 {[%clk 0:01:14]} 23. f4 {[%clk 0:01:27]}  Bd6 {[%clk 0:01:13]} 24. Rde2 {[%clk 0:01:25]}  Rce8 {[%clk 0:01:06]} 25. g3 {[%clk 0:01:20]}  h5 {[%clk 0:01:04]} 26. Bd4 {[%clk 0:01:17]}  Bc8 {[%clk 0:01:01]} 27. c3 {[%clk 0:01:05]}  bxc3 {[%clk 0:00:54]} 28. Bxc3 {[%clk 0:01:05]}  h4 {[%clk 0:00:41]} 29. Bc2 {[%clk 0:01:05]}  hxg3 {[%clk 0:00:41]} 30. hxg3 {[%clk 0:01:05]}  Rhg8 {[%clk 0:00:40]} 31. Bb3 {[%clk 0:00:59]}  Bd7 {[%clk 0:00:37]} 32. f5 {[%clk 0:00:57]}  Ke7 {[%clk 0:00:25]} 33. Bxd5 {[%clk 0:00:46]}  Bb5 {[%clk 0:00:19]} 34. Rxe6+ {[%clk 0:00:44]}  Kd7 {[%clk 0:00:18]} 35. Rxd6+ {[%clk 0:00:37]}  Kxd6 {[%clk 0:00:15]} 36. Bxg8 {[%clk 0:00:34]}  Rxg8 {[%clk 0:00:15]} 37. Re6+ {[%clk 0:00:33]}  Kd5 {[%clk 0:00:15]} 38. Rxf6 {[%clk 0:00:31]}  Rxg3 {[%clk 0:00:15]} 39. Rf8 {[%clk 0:00:25]}  Rg2 {[%clk 0:00:14]} 40. f6 {[%clk 0:00:18]}  Bd3+ {[%clk 0:00:11]} 41. Kc1 {[%clk 0:00:18]}  Rc2+ {[%clk 0:00:07]} 42. Kd1 {[%clk 0:00:18]}  Rf2 {[%clk 0:00:06]} 43. Rd8+ {[%clk 0:00:17]}  Ke4 {[%clk 0:00:07]} 44. Re8+ {[%clk 0:00:16]}  Kd5 {[%clk 0:00:05]} 45. Re7 {[%clk 0:00:12]}  a5 {[%clk 0:00:04]} 46. f7 {[%clk 0:00:12]}  a4 {[%clk 0:00:02]} 47. Bg7 {[%clk 0:00:11]} 1-0


[Site "https://www.chess.com"]

[Event "Titled Tuesday Blitz February 07 Early 2023"]
[White "Balint, Vilmos"]
[Black "Minko, Dmitry"]
[WhiteFideId "718050"]
[BlackFideId "24188468"]
[WhiteElo "2169"]
[BlackElo "2247"]
[Result "0-1"]
[Round "05"]
[TimeControl "180+2"]
[Date "2023.02.07"]
[WhiteClock "0:00:43"]
[BlackClock "0:00:34"]

1. e4 {[%clk 0:02:53]}  e5 {[%clk 0:02:59]} 2. f4 {[%clk 0:02:53]}  exf4 {[%clk 0:02:58]} 3. Bc4 {[%clk 0:02:52]}  d6 {[%clk 0:02:40]} 4. d4 {[%clk 0:02:49]}  Qh4+ {[%clk 0:02:12]} 5. Kf1 {[%clk 0:02:48]}  g5 {[%clk 0:02:10]} 6. Nf3 {[%clk 0:02:43]}  Qh6 {[%clk 0:02:10]} 7. Nc3 {[%clk 0:02:44]}  g4 {[%clk 0:01:49]} 8. Ne1 {[%clk 0:02:39]}  Nf6 {[%clk 0:01:49]} 9. Nd3 {[%clk 0:02:36]}  Bg7 {[%clk 0:01:44]} 10. Nxf4 {[%clk 0:02:28]}  g3 {[%clk 0:01:33]} 11. Nfd5 {[%clk 0:02:11]}  Qh4 {[%clk 0:01:33]} 12. Nxc7+ {[%clk 0:02:06]}  Kd8 {[%clk 0:01:34]} 13. Nxa8 {[%clk 0:02:05]}  Ng4 {[%clk 0:01:20]} 14. Qe1 {[%clk 0:01:11]}  Qf6+ {[%clk 0:00:39]} 15. Ke2 {[%clk 0:00:59]}  Nf2 {[%clk 0:00:39]} 16. h4 {[%clk 0:00:48]}  Bg4+ {[%clk 0:00:38]} 17. Kd2 {[%clk 0:00:46]}  Bh6+ {[%clk 0:00:36]} 18. Qe3 {[%clk 0:00:43]}  Qxd4+ {[%clk 0:00:34]} 19. Ke1 {[%clk 0:00:43]}  Bxe3 {[%clk 0:00:34]} 0-1


[Site "https://www.chess.com"]

[Event "Titled Tuesday Blitz February 07 Early 2023"]
[White "Senft, Sean"]
[Black "Andrews, Todd"]
[WhiteFideId "2044960"]
[BlackFideId "2012456"]
[WhiteElo "2089"]
[BlackElo "2220"]
[Result "1-0"]
[Round "05"]
[TimeControl "180+2"]
[Date "2023.02.07"]
[WhiteClock "0:01:10"]
[BlackClock "0:00:06"]

1. d4 {[%clk 0:03:00]}  Nf6 {[%clk 0:02:58]} 2. c4 {[%clk 0:03:00]}  g6 {[%clk 0:02:58]} 3. Nc3 {[%clk 0:03:00]}  Bg7 {[%clk 0:02:58]} 4. e4 {[%clk 0:03:00]}  d6 {[%clk 0:02:59]} 5. f4 {[%clk 0:03:00]}  O-O {[%clk 0:02:59]} 6. Nf3 {[%clk 0:03:01]}  c5 {[%clk 0:03:00]} 7. d5 {[%clk 0:03:02]}  e6 {[%clk 0:03:00]} 8. Be2 {[%clk 0:03:02]}  exd5 {[%clk 0:03:00]} 9. exd5 {[%clk 0:03:03]}  Re8 {[%clk 0:03:00]} 10. O-O {[%clk 0:03:04]}  a6 {[%clk 0:03:00]} 11. a4 {[%clk 0:03:03]}  Bg4 {[%clk 0:02:59]} 12. Bd3 {[%clk 0:03:04]}  Nbd7 {[%clk 0:02:57]} 13. Bd2 {[%clk 0:03:03]}  Re7 {[%clk 0:02:41]} 14. h3 {[%clk 0:03:02]}  Bxf3 {[%clk 0:02:40]} 15. Qxf3 {[%clk 0:03:03]}  Qc7 {[%clk 0:02:37]} 16. Kh1 {[%clk 0:03:00]}  Rae8 {[%clk 0:02:37]} 17. Rf2 {[%clk 0:02:59]}  Nh5 {[%clk 0:02:22]} 18. g4 {[%clk 0:02:58]}  Nhf6 {[%clk 0:02:18]} 19. Raf1 {[%clk 0:02:57]}  h6 {[%clk 0:02:13]} 20. Rg2 {[%clk 0:02:57]}  Nh7 {[%clk 0:02:11]} 21. Nd1 {[%clk 0:02:54]}  Bd4 {[%clk 0:01:58]} 22. Qg3 {[%clk 0:02:53]}  Ndf6 {[%clk 0:01:52]} 23. f5 {[%clk 0:02:52]}  g5 {[%clk 0:01:48]} 24. h4 {[%clk 0:02:49]}  Ne4 {[%clk 0:01:47]} 25. Bxe4 {[%clk 0:02:46]}  Rxe4 {[%clk 0:01:46]} 26. hxg5 {[%clk 0:02:46]}  Nxg5 {[%clk 0:01:35]} 27. Bxg5 {[%clk 0:02:36]}  hxg5 {[%clk 0:01:35]} 28. f6 {[%clk 0:02:37]}  Qd7 {[%clk 0:00:38]} 29. Qh3 {[%clk 0:02:35]}  Bxf6 {[%clk 0:00:32]} 30. Rxf6 {[%clk 0:02:32]}  Re1+ {[%clk 0:00:33]} 31. Rg1 {[%clk 0:02:32]}  Rxg1+ {[%clk 0:00:31]} 32. Kxg1 {[%clk 0:02:32]}  Re1+ {[%clk 0:00:30]} 33. Rf1 {[%clk 0:02:33]}  Re4 {[%clk 0:00:30]} 34. Nf2 {[%clk 0:02:27]}  Rxc4 {[%clk 0:00:28]} 35. Qh5 {[%clk 0:02:28]}  Qe7 {[%clk 0:00:26]} 36. Kg2 {[%clk 0:02:23]}  Rf4 {[%clk 0:00:24]} 37. Rh1 {[%clk 0:02:21]}  Qf6 {[%clk 0:00:23]} 38. Qh7+ {[%clk 0:02:20]}  Kf8 {[%clk 0:00:24]} 39. Qh8+ {[%clk 0:02:20]}  Qxh8 {[%clk 0:00:24]} 40. Rxh8+ {[%clk 0:02:20]}  Ke7 {[%clk 0:00:25]} 41. a5 {[%clk 0:02:15]}  Rb4 {[%clk 0:00:24]} 42. Kf3 {[%clk 0:02:08]}  Rxb2 {[%clk 0:00:23]} 43. Ne4 {[%clk 0:02:05]}  Rb3+ {[%clk 0:00:23]} 44. Ke2 {[%clk 0:02:04]}  Rb4 {[%clk 0:00:19]} 45. Kd3 {[%clk 0:02:01]}  Rd4+ {[%clk 0:00:19]} 46. Ke3 {[%clk 0:02:01]}  Ra4 {[%clk 0:00:20]} 47. Rg8 {[%clk 0:01:58]}  Rxa5 {[%clk 0:00:18]} 48. Rxg5 {[%clk 0:01:56]}  Ra3+ {[%clk 0:00:19]} 49. Kf2 {[%clk 0:01:53]}  b5 {[%clk 0:00:20]} 50. Rg8 {[%clk 0:01:53]}  b4 {[%clk 0:00:20]} 51. g5 {[%clk 0:01:52]}  c4 {[%clk 0:00:20]} 52. Rb8 {[%clk 0:01:46]}  c3 {[%clk 0:00:19]} 53. Rxb4 {[%clk 0:01:43]}  c2 {[%clk 0:00:18]} 54. Rc4 {[%clk 0:01:43]}  Ra2 {[%clk 0:00:18]} 55. Ke3 {[%clk 0:01:42]}  a5 {[%clk 0:00:17]} 56. Kd2 {[%clk 0:01:41]}  c1=Q+ {[%clk 0:00:15]} 57. Kxc1 {[%clk 0:01:41]}  Re2 {[%clk 0:00:16]} 58. Kd1 {[%clk 0:01:40]}  Rg2 {[%clk 0:00:15]} 59. Rc7+ {[%clk 0:01:39]}  Kd8 {[%clk 0:00:16]} 60. Ra7 {[%clk 0:01:38]}  Rg4 {[%clk 0:00:15]} 61. Nxd6 {[%clk 0:01:35]}  Rd4+ {[%clk 0:00:14]} 62. Ke2 {[%clk 0:01:35]}  Rxd5 {[%clk 0:00:15]} 63. Nxf7+ {[%clk 0:01:34]}  Kc8 {[%clk 0:00:16]} 64. Kf3 {[%clk 0:01:30]}  Kb8 {[%clk 0:00:16]} 65. Ra6 {[%clk 0:01:29]}  Kb7 {[%clk 0:00:16]} 66. Re6 {[%clk 0:01:27]}  a4 {[%clk 0:00:16]} 67. g6 {[%clk 0:01:27]}  a3 {[%clk 0:00:15]} 68. g7 {[%clk 0:01:27]}  Rf5+ {[%clk 0:00:11]} 69. Ke4 {[%clk 0:01:14]}  a2 {[%clk 0:00:10]} 70. Kxf5 {[%clk 0:01:14]}  a1=Q {[%clk 0:00:10]} 71. g8=Q {[%clk 0:01:14]}  Qf1+ {[%clk 0:00:10]} 72. Kg6 {[%clk 0:01:13]}  Qg2+ {[%clk 0:00:10]} 73. Ng5 {[%clk 0:01:13]}  Qc2+ {[%clk 0:00:09]} 74. Kg7 {[%clk 0:01:12]}  Qc3+ {[%clk 0:00:08]} 75. Kf8 {[%clk 0:01:11]}  Qc8+ {[%clk 0:00:08]} 76. Re8 {[%clk 0:01:11]}  Qc5+ {[%clk 0:00:08]} 77. Re7+ {[%clk 0:01:10]}  Kb6 {[%clk 0:00:06]} 78. Qe6+ {[%clk 0:01:10]}  Kb5 {[%clk 0:00:06]} 79. Qe5 {[%clk 0:01:10]} 1-0


[Site "https://www.chess.com"]

[Event "Titled Tuesday Blitz February 07 Early 2023"]
[White "Mohammed, Zozek Salah Mohammed"]
[Black "Theytookourjobs"]
[WhiteFideId "4803361"]
[WhiteElo "2210"]
[BlackElo "2291"]
[Result "0-1"]
[Round "05"]
[TimeControl "180+2"]
[Date "2023.02.07"]
[WhiteClock "0:00:01"]
[BlackClock "0:00:27"]

1. d4 {[%clk 0:02:36]}  e6 {[%clk 0:02:59]} 2. Nf3 {[%clk 0:02:34]}  f5 {[%clk 0:02:59]} 3. g3 {[%clk 0:02:29]}  Nf6 {[%clk 0:02:59]} 4. Bg2 {[%clk 0:02:29]}  Be7 {[%clk 0:02:59]} 5. O-O {[%clk 0:00:27]}  O-O {[%clk 0:02:58]} 6. c4 {[%clk 0:00:26]}  d6 {[%clk 0:02:58]} 7. Nc3 {[%clk 0:00:26]}  Ne4 {[%clk 0:02:58]} 8. Nd2 {[%clk 0:00:25]}  Nxc3 {[%clk 0:02:55]} 9. bxc3 {[%clk 0:00:24]}  c6 {[%clk 0:02:55]} 10. Qb3 {[%clk 0:00:24]}  Kh8 {[%clk 0:02:55]} 11. e4 {[%clk 0:00:23]}  e5 {[%clk 0:02:55]} 12. Ba3 {[%clk 0:00:19]}  c5 {[%clk 0:02:50]} 13. Rad1 {[%clk 0:00:15]}  Qc7 {[%clk 0:02:44]} 14. Nb1 {[%clk 0:00:13]}  f4 {[%clk 0:02:28]} 15. dxe5 {[%clk 0:00:12]}  dxe5 {[%clk 0:02:27]} 16. f3 {[%clk 0:00:11]}  Be6 {[%clk 0:02:06]} 17. Rd3 {[%clk 0:00:11]}  Nc6 {[%clk 0:02:06]} 18. Qb5 {[%clk 0:00:07]}  b6 {[%clk 0:02:01]} 19. Nd2 {[%clk 0:00:07]}  Rad8 {[%clk 0:01:58]} 20. Rxd8 {[%clk 0:00:06]}  Rxd8 {[%clk 0:01:59]} 21. Nb3 {[%clk 0:00:05]}  Rd3 {[%clk 0:01:47]} 22. Bxc5 {[%clk 0:00:01]}  Bxc5+ {[%clk 0:01:28]} 23. Nxc5 {[%clk 0:00:02]}  bxc5 {[%clk 0:01:27]} 24. Qxc5 {[%clk 0:00:03]}  Qd6 {[%clk 0:01:03]} 25. Qxd6 {[%clk 0:00:02]}  Rxd6 {[%clk 0:01:03]} 26. Rb1 {[%clk 0:00:03]}  Bxc4 {[%clk 0:00:54]} 27. Rb7 {[%clk 0:00:03]}  h6 {[%clk 0:00:39]} 28. gxf4 {[%clk 0:00:01]}  exf4 {[%clk 0:00:39]} 29. Rf7 {[%clk 0:00:01]}  Rf6 {[%clk 0:00:27]} 0-1


[Site "https://www.chess.com"]